Cogmind - Beta 14 @@@ ROGUE MODE // 2024.12.25 @ 20:10:39 Player: lazy_engineer Result: Self-destructed Performance ------------- Evolutions (2) 1000 Regions Visited (5) 1000 Robots Destroyed (33) 165 Value Destroyed (599) 599 Prototype IDs (3) 60 Alien Tech Used (0) 0 Bonus (0) 0 TOTAL SCORE: 2824 Bonus ------- None Cogmind --------- Core Integrity 18/550 Matter 198/300 Energy 125/125 System Corruption 0% Temperature Cool (1) Movement Core (250) Ox4 Location -8/Materials Parts ------- > --- POWER (1) -------- Light Ion Engine > --- PROPULSION (2) --- (None) > --- UTILITY (6) ------ Medium Storage Unit Hacking Suite > --- WEAPON (2) ------- (None) > --- INVENTORY (10) --- Airjet Hacking Suite Datajack Mining Laser Plasma Cutter Plasma Cutter Peak State ------------ > --- POWER ------------ Light Ion Engine > --- PROPULSION ------- Airjet Airjet > --- UTILITY ---------- Medium Storage Unit Weight Redist. System Sensor Array Improved Signal Interpreter Improved Terrain Scanner Hacking Suite > --- WEAPON ----------- Assault Rifle > --- INVENTORY -------- Airjet Hacking Suite Light Assault Rifle Datajack Mining Laser Plasma Cutter Plasma Cutter [Rating: 22] Favorites ----------- Power Light Ion Engine Engine Light Ion Engine Propulsion Wheel Treads Light Treads Wheel Wheel Hover Unit Airjet Flight Unit Improved Flight Unit Utility Improved Terrain Scanner Device Improved Terrain Scanner Storage Small Storage Unit Processor Improved Signal Interpreter Hackware Hacking Suite Protection Light Armor Plating Weapon Assault Rifle Ballistic Gun Assault Rifle Build | -11 -10 -10 -9 -9 -8 ------- Run | Yrd Mat Min Mat Min Mat Slots Evolved 4 | . . . 2 . 2 Power . | . . . . . . Propulsion . | . . . . . . Utility 4 | . . . 2 . 2 Weapon . | . . . . . . Parts Attached 44 | 8 5 1 15 4 11 Power 6 | 1 1 . 2 1 1 Engine 6 | 1 1 . 2 1 1 Core . | . . . . . . Reactor . | . . . . . . Propulsion 14 | 3 3 . 4 2 2 Treads 5 | 1 1 . 3 . . Leg . | . . . . . . Wheel 4 | 2 2 . . . . Hover 2 | . . . . . 2 Flight 3 | . . . 1 2 . Utility 14 | 2 1 1 6 . 4 Device 6 | 1 1 1 2 . 1 Storage 2 | 1 . . 1 . . Processor 3 | . . . 1 . 2 Hackware 1 | . . . . . 1 Protection 2 | . . . 2 . . Artifact . | . . . . . . Weapon 10 | 2 . . 3 1 4 Energy Gun . | . . . . . . Energy Cannon . | . . . . . . Ballistic Gun 10 | 2 . . 3 1 4 Ballistic Cannon . | . . . . . . Launcher . | . . . . . . Special Weapon . | . . . . . . Impact Weapon . | . . . . . . Slashing Weapon . | . . . . . . Piercing Weapon . | . . . . . . Special Melee Weapon . | . . . . . . Unidentified Prototypes 3 | . . 1 2 . . Parts Lost 13 | . . . 4 . 9 Power 2 | . . . 1 . 1 Propulsion 4 | . . . 2 . 2 Utility 5 | . . . 1 . 4 Weapon 2 | . . . . . 2 Highest Loss Streak 9 | . . . 2 . 9 To Critical Strikes . | . . . . . . Average Slot Usage (%) 90 | . 100 87 94 85 82 Engine 11 | . 14 14 11 11 8 Treads 7 | . 1 . 15 15 . Wheel 11 | . 26 28 4 . . Flight 3 | . . . . 6 14 Device 17 | . 14 14 14 22 24 Storage 11 | . 14 14 11 11 9 Processor 2 | . . . 2 . 8 Hackware 1 | . . . . . 9 Protection 3 | . . . 11 . . Ballistic Gun 18 | . 28 16 22 19 5 Peak Build Rating 22 | 9 9 14 18 17 22 Average Rating 12 | 6 7 11 13 14 18 On Entrance 9 | . 9 7 14 16 13 Naked Turns . | . . . . . . Heaviest Build 24 | 12 12 12 24 24 18 Greatest Support 46 | 20 20 20 46 46 22 Greatest Overweight (x) 4 | 1 1 . 1 1 4 Average Overweight (x) . | . . . . . . Largest Inventory Capacity 10 | 8 8 8 10 10 10 Average Capacity 8 | 7 8 8 8 10 10 Most Carried 10 | 4 6 8 10 10 10 Average Carried 6 | 2 4 6 7 9 6 Final Capacity 10 | 8 8 8 10 10 10 Final Carried 10 | 3 6 7 10 9 6 Class Distribution -------------------- 49% | Mutant 35% | Scavenger-Mutant 10% | Scavenger-Scout 3% | Scavenger-Skirmisher Dominant Class ---------------- Mutant | -10/Materials Mutant | -10/Mines Scavenger-Mutant | -9/Materials Scavenger-Mutant | -9/Mines Scavenger-Scout | -8/Materials Resources | -11 -10 -10 -9 -9 -8 ----------- Run | Yrd Mat Min Mat Min Mat Matter Collected 992 | 336 69 54 472 42 19 Remotely . | . . . . . . Salvage Created 1121 | 195 95 . 761 42 28 Parts 85 | 16 4 . 51 11 3 Haulers Intercepted 5 | . . . 5 . . Recyclers Shooed . | . . . . . . Parts Field Recycled . | . . . . . . Retrieved Matter . | . . . . . . Parts Self-Destructed . | . . . . . . Prevented . | . . . . . . Kills | -11 -10 -10 -9 -9 -8 ------- Run | Yrd Mat Min Mat Min Mat Combat Hostiles Destroyed 16 | . 2 . 9 3 2 Guns 16 | . 2 . 9 3 2 Classes Destroyed 10 | 2 2 . 5 1 . Worker 2 | . . . 2 . . Tunneler 5 | 5 . . . . . Hauler 5 | . . . 5 . . Recycler 1 | 1 . . . . . Operator 1 | . . . 1 . . Watcher 3 | . 1 . 2 . . Swarmer 5 | . . . . 3 2 Grunt 7 | . 2 . 5 . . Brawler 1 | . . . 1 . . Sentry 3 | . . . 3 . . Best Kill Streak 5 | 5 1 . 4 3 2 Combat Bots Only 3 | . 1 . 2 3 2 Max Kills in Single Turn 2 | 1 1 . 2 1 1 Gunslinging 1 | . . . 1 . . Exploded . | . . . . . . Melee . | . . . . . . Uniques/NPCs Destroyed . | . . . . . . Combat | -11 -10 -10 -9 -9 -8 -------- Run | Yrd Mat Min Mat Min Mat Hostile Shots Fired 207 | . 14 . 77 5 111 Missed 80 | . 4 . 32 1 43 Damage Taken 1830 | . 137 . 601 31 1061 Core 662 | . 62 . 59 9 532 Absorbed by Shields . | . . . . . . Core Remaining (%) 86 | 100 . 75 . 83 . Volleys Fired 93 | 14 10 1 61 3 4 Largest 2 | 2 2 1 2 2 2 Hottest 43 | 40 40 20 43 43 40 Shots Fired 185 | 28 20 1 122 6 8 Gun 185 | 28 20 1 122 6 8 Cannon . | . . . . . . Launcher . | . . . . . . Special . | . . . . . . Kinetic 185 | 28 20 1 122 6 8 Thermal . | . . . . . . Explosive . | . . . . . . Electromagnetic . | . . . . . . Robot Hit Streak 11 | 4 8 . 9 9 11 Robot Miss Streak 4 | 2 3 1 4 . 1 Penetration Max . | . . . . . . Secondary Targets 2 | . . . 1 . 1 Max Gunslinging Chain 1 | . . . 1 . 1 Shots Hit Robots 120 | 14 14 . 83 3 6 Core Hits 51 | 9 7 . 29 3 3 Critical Kills . | . . . . . . Critical Parts Destroyed . | . . . . . . Critical Strikes . | . . . . . . Melee Attacks . | . . . . . . Impact . | . . . . . . Slashing . | . . . . . . Piercing . | . . . . . . Sneak Attacks . | . . . . . . Combat Hostiles . | . . . . . . Follow-up Attacks . | . . . . . . Damage Inflicted 1546 | 156 144 . 1157 32 57 Guns 1546 | 156 144 . 1157 32 57 Cannons . | . . . . . . Explosions . | . . . . . . Melee . | . . . . . . Ramming . | . . . . . . Kinetic 1546 | 156 144 . 1157 32 57 Thermal . | . . . . . . Explosive . | . . . . . . Electromagnetic . | . . . . . . Impact . | . . . . . . Slashing . | . . . . . . Piercing . | . . . . . . Highest Corruption 2 | . 2 2 . . . Average Corruption 2 | . 2 2 . . . Corruption Purged . | . . . . . . Corruption Blocked . | . . . . . . Effects 7 | . 2 5 . . . Message Errors 3 | . 1 2 . . . Matter Fused 3 | . . 3 . . . Parts Rejected 1 | . 1 . . . . Overload Shots . | . . . . . . Overflow Damage . | . . . . . . Projectiles . | . . . . . . Explosions . | . . . . . . Melee . | . . . . . . Knockbacks . | . . . . . . Impact . | . . . . . . Kinetic . | . . . . . . Secondary . | . . . . . . Self-Inflicted Damage . | . . . . . . Shots . | . . . . . . Rammed . | . . . . . . Targets Rammed . | . . . . . . Kicked . | . . . . . . Crushed . | . . . . . . Highest Temperature 27 | . 27 . 17 . 5 Average Temperature 9 | . 12 . 7 . 3 Received Heat Transfer 816 | . 81 . 276 . 459 Siege Activations . | . . . . . . Robots Corrupted . | . . . . . . Combat Hostiles . | . . . . . . Parts Fried . | . . . . . . Impact Corruptions . | . . . . . . Robots Melted . | . . . . . . Combat Hostiles . | . . . . . . Parts Melted . | . . . . . . Heat Transferred . | . . . . . . Parts Sabotaged . | . . . . . . Parts Stolen . | . . . . . . Parts Stripped . | . . . . . . Power Chain Reactions . | . . . . . . Alert | -11 -10 -10 -9 -9 -8 ------- Run | Yrd Mat Min Mat Min Mat Peak Influence 372 | 30 76 29 185 142 372 Initial 72 | . 19 29 . 72 55 Average 79 | 13 66 27 93 93 140 Maximum Alert Level 1 | . . . . . 1 Low Security (%) 96 | 100 100 100 100 100 82 Level 1 3 | . . . . . 17 Level 2 . | . . . . . . Level 3 . | . . . . . . Level 4 . | . . . . . . Level 5 . | . . . . . . High Security . | . . . . . . Max Security . | . . . . . . Squads Dispatched 5 | . . . 2 . 3 Investigation 1 | . . . 1 . . Extermination . | . . . . . . Reinforcement 4 | . . . 1 . 3 Assault . | . . . . . . Garrison . | . . . . . . Intercept . | . . . . . . Searches Triggered . | . . . . . . Construction Impeded . | . . . . . . Haulers Reinforced . | . . . . . . Active Scanning Responses . | . . . . . . Cargo Convoy Interrupts . | . . . . . . Stealth | -11 -10 -10 -9 -9 -8 --------- Run | Yrd Mat Min Mat Min Mat Distress Signals 3 | . . . 2 . 1 Communications Jammed . | . . . . . . Distress Signals . | . . . . . . Times Spotted 54 | . 5 . 18 7 24 Peak Tracking Total 15 | . 3 . 4 4 15 Tactical Retreats 4 | . . . . . 4 Traps | -11 -10 -10 -9 -9 -8 ------- Run | Yrd Mat Min Mat Min Mat Traps Triggered 1 | . 1 . . . . Indirectly . | . . . . . . Trap Hack Attempts . | . . . . . . Triggered . | . . . . . . Disarmed . | . . . . . . Reprogrammed . | . . . . . . Reused . | . . . . . . Traps Extracted . | . . . . . . Installed . | . . . . . . Triggered . | . . . . . . Machines | -11 -10 -10 -9 -9 -8 ---------- Run | Yrd Mat Min Mat Min Mat Machines Disabled 1 | . . . 1 . . Max in Single Turn 1 | . . . 1 . . Machines Repaired . | . . . . . . Machines Dismantled . | . . . . . . Machines Sabotaged . | . . . . . . Overloaded Fab Kills . | . . . . . . Hacking | -11 -10 -10 -9 -9 -8 --------- Run | Yrd Mat Min Mat Min Mat Machines Accessed 7 | . 1 . 3 1 2 Terminals 7 | . 1 . 3 1 2 Fabricators . | . . . . . . Repair Stations . | . . . . . . Recycling Units . | . . . . . . Scanalyzers . | . . . . . . Garrison Access . | . . . . . . Total Hacks 22 | . 2 . 9 3 8 Successful 2 | . . . 1 . 1 Failed 20 | . 2 . 8 3 7 Catastrophic 2 | . 1 . 1 . . Database Lockouts . | . . . . . . Manual 10 | . 2 . 2 . 6 Terminals 22 | . 2 . 9 3 8 Fabricators . | . . . . . . Repair Stations . | . . . . . . Recycling Units . | . . . . . . Scanalyzers . | . . . . . . Garrison Access . | . . . . . . Terminal Hacks 2 | . . . 1 . 1 Locate Traps 1 | . . . . . 1 Hauler Manifests 1 | . . . 1 . . Fabricator Hacks . | . . . . . . Repair Station Hacks . | . . . . . . Recycling Unit Hacks . | . . . . . . Scanalyzer . | . . . . . . Garrison Access Hacks . | . . . . . . Unauthorized Hacks . | . . . . . . Terminals . | . . . . . . Fabricators . | . . . . . . Repair Stations . | . . . . . . Recycling Units . | . . . . . . Scanalyzers . | . . . . . . Garrison Access . | . . . . . . Data Cores Recovered 1 | . . . 1 . . Used . | . . . . . . Hacking Detections 6 | . 1 . 2 1 2 Full Trace Events 1 | . . . 1 . . Feedback Events . | . . . . . . Feedback Blocked . | . . . . . . Robot Schematics Acquired . | . . . . . . Robots Built . | . . . . . . Authchips . | . . . . . . Time . | . . . . . . Total Robot Build Rating . | . . . . . . Part Schematics Acquired . | . . . . . . Parts Built . | . . . . . . Authchips . | . . . . . . Time . | . . . . . . Total Part Build Rating . | . . . . . . Parts Repaired . | . . . . . . Time . | . . . . . . Parts Recycled . | . . . . . . Recycled Matter . | . . . . . . Retrieved Matter . | . . . . . . Retrieved Components . | . . . . . . Parts Scanalyzed . | . . . . . . Part Schematics Acquired . | . . . . . . Parts Damaged . | . . . . . . Bothacking | -11 -10 -10 -9 -9 -8 ------------ Run | Yrd Mat Min Mat Min Mat Used RIF Installer . | . . . . . . Robots Hacked . | . . . . . . Non-combat . | . . . . . . Combat . | . . . . . . Robot Hacks Applied . | . . . . . . Relay Couplers Released . | . . . . . . Fabnet Peak Effective % . | . . . . . . Robots Rewired . | . . . . . . Allies Hacked . | . . . . . . Hacks Repelled . | . . . . . . Allies | -11 -10 -10 -9 -9 -8 -------- Run | Yrd Mat Min Mat Min Mat Total Allies . | . . . . . . Largest Group . | . . . . . . Highest-Rated Group . | . . . . . . Highest-Rated Ally . | . . . . . . Total Orders . | . . . . . . Ally Attacks . | . . . . . . Total Damage . | . . . . . . Kills . | . . . . . . Allies Corrupted . | . . . . . . Allies Melted . | . . . . . . Intel | -11 -10 -10 -9 -9 -8 ------- Run | Yrd Mat Min Mat Min Mat Robot Analysis Total . | . . . . . . Derelict Logs Recovered 3 | . . 2 . 1 . Drone Launches . | . . . . . . Drone Recoveries . | . . . . . . Exploration | -11 -10 -10 -9 -9 -8 ------------- Run | Yrd Mat Min Mat Min Mat Turns Passed 2232 | 170 327 418 671 245 401 Spaces Moved 1665 | 124 341 327 308 247 318 Core 13 | 5 . . . . 8 Treads 319 | . . . 214 105 . Legs . | . . . . . . Wheels 881 | 119 341 327 94 . . Hover 15 | . . . . . 15 Flight 437 | . . . . 142 295 Fastest Speed 37 | 50 80 80 80 37 37 Average Speed 85 | 79 80 80 137 90 44 Slowest Speed 250 | 95 95 80 240 160 250 Overloaded Moves . | . . . . . . Propulsion Burnouts . | . . . . . . Robots Hopped 1 | . . . . 1 . Cave-ins Triggered . | . . . . . . Exploration Rate (%) 35 | 5 50 63 22 37 35 Regions Visited 5 Branch Regions 2 Pre-discovered Areas 2 | . . . . 2 . Known Exits Taken . | . . . . . . Unknown Exits Taken 5 | 1 1 1 1 1 . Scrap Searched 3 | . . 3 . . . Spaces Dug . | . . . . . . Terrain Destroyed . | . . . . . . Melee . | . . . . . . Projectile . | . . . . . . AOE . | . . . . . . Terrain Rammed . | . . . . . . Walls Destroyed . | . . . . . . Machines Disabled . | . . . . . . Actions | -11 -10 -10 -9 -9 -8 --------- Run | Yrd Mat Min Mat Min Mat Total 2301 | 169 377 483 434 264 574 Wait 440 | 14 13 151 31 3 228 Move 1658 | 123 340 326 307 244 318 Hop 1 | . . . . 1 . Pick Up 40 | 10 6 2 13 3 6 Fast Attach 3 | . . . 3 . . Attach 34 | 7 3 1 8 4 11 Detach 4 | . 1 . . . 3 Swap 7 | 1 2 . 4 . . Drop 21 | . 2 2 7 6 4 Fire 93 | 14 10 1 61 3 4 Melee . | . . . . . . Ram . | . . . . . . Kick . | . . . . . . Crush . | . . . . . . Escape Stasis . | . . . . . . Rewire . | . . . . . . Trap . | . . . . . . Miscellaneous . | . . . . . . Route ------- -11/Scrapyard -10/Materials (discovered 3 exits: *Mat / [*Min x2]) -10/Mines -9/Materials (discovered 2 exits: *Min x2) -9/Mines -8/Materials History --------- Turn | Location | Event 10 | -11/Scrapyard | Discovered new exit (range 15) 171 | -11/Scrapyard | Entered Materials 253 | -10/Materials | Discovered new exit (range 16) 300 | -10/Materials | Build established: Mutant 378 | -10/Materials | Discovered new exit (range 5) 487 | -10/Materials | Discovered new exit (range 13) 498 | -10/Materials | Entered Mines 507 | -10/Mines | Learned Materials terminal intel 537 | -10/Mines | Found a hidden stash of uninstalled traps 594 | -10/Mines | Learned Materials trap positions 632 | -10/Mines | Found a damaged Exp. Sensor Array with a note attached 635 | -10/Mines | Found Prototype Device 637 | -10/Mines | Identified Exp. Sensor Array 680 | -10/Mines | Assembled infested the area 685 | -10/Mines | Assisted by a Guerilla fighting off Assembled 820 | -10/Mines | YI-UF0 nonchalantly dropped a Grenade Launcher on the ground 909 | -10/Mines | Discovered new exit (range 8) 916 | -10/Mines | Entered Materials 916 | -9/Materials | Evolved 2 slots: Utility x2 917 | -9/Materials | Loaded intel: 21 trap records 918 | -9/Materials | Loaded intel: 10 terminal locations 1079 | -9/Materials | Discovered new exit (range 6) 1235 | -9/Materials | Discovered new exit (range 15) 1407 | -9/Materials | Build established: Scavenger-Mutant 1587 | -9/Materials | Entered Mines 1609 | -9/Mines | Met a Derelict bent on vengeance 1620 | -9/Mines | Learned location of Zion (-6) 1808 | -9/Mines | Discovered new exit (range 9) 1815 | -9/Mines | Learned location of Storage (-9) 1832 | -9/Mines | Entered Materials 1832 | -8/Materials | Evolved 2 slots: Utility x2 2218 | -8/Materials | Core integrity fell below 50% 2225 | -8/Materials | Core integrity fell below 20% 2233 | -8/Materials | Self-destructed Last Messages --------------- 02166_ K-01 Serf cleans the Garrison Access. 02170_ M-13 Machinist destroyed. 02170_ Imp. Terrain Scanner destroyed. 02180_ K-01 Serf collects debris. 02182_ S-10 Pest destroyed. 02186_ Lgt. Ion Engine destroyed. 02190_ S-10 Pest destroyed. 02190_ Switching to secondary target: G-47 Trooper. 02201_ Acquired 19 matter. 02203_ Acquired Lgt. Ion Engine. 02204_ Airjet destroyed. 02205_ Critical hit (Burn: +37). 02209_ Airjet destroyed. 02209_ G-47 Trooper destroyed. 02210_ Lgt. Assault Rifle destroyed. 02212_ Sensor Array destroyed. 02212_ Assault Rifle destroyed. 02220_ Weight Redist. System destroyed. 02232_ Critical hit (Burn: +37). 02233_ Imp. Signal Interpreter destroyed. Map ----- +----------------------------------------------------+ | ????# #????????????????????# ######???????? | | ????? #????????????????????# #????????????? | | ????? #????????????#???????# #????????????? | | ????? #????????????????????# #????????????? | | ????? #????????????????????#! #????????????? | | ????? #????????????????????#%! ##/#####????????? | | ????? #???????????#????????#= #= #????????? | | ????? #????????????????????# #/ #????????? | | ?????????????????????????????# #= """ #????????? | | ?????????????????????????????+ + G" #????????? | | ?????????????????????????????# # """ #????????? | | ?????????????????????????????# # #????????? | | ????????????????????????????## ########?????#??# | | ??????????????????###########! #??????????????? | | ????????????????? #??????????????? | | ????????????????? T #????"?????????? | | ????????????????? #??????????????? | | ?????????????????############ = #??????????????? | | ????????????????????????????## ##??????????????? | | ?????????????????????????????# = #???????????????? | | ?????????????????????????????#*%=#??????#????????? | | ?????????????????????????????+[! ##### ######???? | | ?????????????????????????????# T ?? | | ?????????????????????????????#% ?? | | ??????????????????# ######## g= ######???? | | ??????????????????# @l gY[[% """ #????????? | | ??????????????????# gg g """ #????????? | | ??????????????????# g% """ #????????? | | ??????????????????# + ???????? | | ??????????????????# # ??????? | | ??????????????????# ################ #?##?????? | | ??????????????????+ ????????????????? #???????? | | ??????????????????# ??????????????????? ????????? | | ??????????????????# ?????????????????????????????? | | ??????????????????# ?????????????????????????????? | | ??????????????????#??????????????????????????????? | | ?????????????????????????????????????????????????? | | ?????????????????????????????????????????????????? | | ?????????????????????????????????????????????????? | | ?????????????????????????????????????????????????? | | ?????????????????????????????????????????????????? | | ?????????????????????????????????????????????????? | | ?????????????????????????????????????????????????? | | ?????????????????????????????????????????????????? | | | | | | | | | | | | | +----------------------------------------------------+ Best States ------------- Heat Dissipation 31 Energy Generation 14 Energy Capacity 280 Matter Stores 300 Matter Capacity 300 Sight Range 16 Robot Scan Range 20 Terrain Scan Range 16 Terrain Scan Density 10 Additional Mass Support 6 Armor Coverage 300 Evasion (%) 62 Recoil Reduction 2 Offensive Hacking 10 Item Schematics ----------------- None Robot Schematics ------------------ None Fabricated ------------ Nothing Alien Tech Used ----------------- None Achievements -------------- None Challenges ------------ None Game ------ Seed SlugStorageMagmablaster Manual? 0 Play Time 00:27:09 Cumulative 41.3 hours Start 2024.12.25 @ 18:50:33 End 2024.12.25 @ 20:10:39 Sessions 2 Manual Loads 0 Difficulty Rogue Special Mode None Game No. 87 Rogue 87 Adventurer 0 Explorer 0 Win Type - Total 0 Types 0/0/0/0/0/0/0/0/0 Lore% 16 Gallery% 28 Achievement% 27 Wizard Run 0 Options --------- Layout 0 ASCII 0 Keyboard 0 Movement Mouse Keybinds 0 Fullscreen 1 Font 24/Smallcaps Map View 76x50 Zoom Use 0% Tactical HUD 1 Map Filters NONE Filters NONE Steam 1 RUN: d80fce1b-028f-4bca-b770-80b4899c48ca